fUSD/lending_fUSD_20260221
["ID","MTS","AMOUNT","RATE_DAILY","PERIOD"]
[406276214,1771683453847,500.0,0.0001,2]
[406276215,1771683453895,500.0,0.0001,2]
[406276216,1771683454293,987.07415075,0.0001,2]
[406276217,1771683454356,500.0,0.0001,2]
[406276218,1771683454852,500.0,0.0001,2]
[406276219,1771683455413,500.0,0.0001,2]
[406276220,1771683455944,600.02,0.0001,2]
[406276221,1771683485219,5731.61906518,0.00013653,2]
[406276222,1771683485248,10000.01,0.00013653,2]
[406276223,1771683485275,10000.01,0.00013653,2]
[406276224,1771683485301,10000.01,0.00013653,2]
[406276225,1771683485328,4268.39093482,0.00013653,2]
[406276226,1771683604040,265.0,0.00013901,2]
[406276227,1771683657486,271.58,0.00013528,2]
[406276228,1771683732196,151.0,0.00013901,2]
[406276229,1771683732776,151.0,0.00013901,2]
[406276230,1771683732804,151.0,0.00013901,2]
[406276231,1771683733438,151.0,0.00013901,2]
[406276232,1771683733483,151.0,0.00013901,2]
[406276233,1771683734050,151.0,0.00013901,2]
[406276234,1771683734098,151.0,0.00013901,2]
[406276235,1771683734657,151.0,0.00013901,2]
[406276236,1771683734864,151.0,0.00013901,2]
[406276237,1771683735364,151.0,0.00013901,2]
[406276238,1771683735506,151.0,0.00013901,2]
[406276239,1771683735912,200.0,0.00013901,2]
[406276240,1771683736079,600.0,0.0001,2]
[406276241,1771683736108,151.0,0.00013901,2]
[406276242,1771683736142,151.0,0.00013901,2]
[406276243,1771683736176,800.0,0.0001,2]
[406276244,1771683736723,151.0,0.00013901,2]
[406276245,1771683736773,151.0,0.00013901,2]
[406276246,1771683736841,500.0,0.00013901,2]
[406276247,1771683737350,151.0,0.00013901,2]
[406276248,1771683737964,151.0,0.00013901,2]
[406276249,1771683738008,500.0,0.00013901,2]
[406276250,1771683738043,151.0,0.00013901,2]
[406276251,1771683738779,151.0,0.00013901,2]
[406276252,1771683738831,151.0,0.00013901,2]
[406276253,1771683738860,500.0,0.00013901,2]
[406276254,1771683738889,500.0,0.00013901,2]
[406276255,1771683739412,151.0,0.00013901,2]
[406276256,1771683739467,500.0,0.00013901,2]
[406276257,1771683739507,500.0,0.00013901,2]
[406276258,1771683740020,151.0,0.00013901,2]
[406276259,1771683740190,500.0,0.00013901,2]
[406276260,1771683740400,500.0,0.00013901,2]
[406276261,1771683740665,151.0,0.00013901,2]
[406276262,1771683740803,390.43,0.00013901,2]
[406276263,1771683740827,109.57,0.00013901,2]
[406276264,1771683740874,500.0,0.00013901,2]
[406276265,1771683741305,151.0,0.00013901,2]
[406276266,1771683741475,500.0,0.00013901,2]
[406276267,1771683741596,500.0,0.00013901,2]
[406276268,1771683741968,151.0,0.00013901,2]
[406276269,1771683742149,500.0,0.00013901,2]
[406276270,1771683742334,500.0,0.00013901,2]
[406276271,1771683742618,151.0,0.00013901,2]
[406276272,1771683742828,500.0,0.00013901,2]
[406276273,1771683743019,500.0,0.00013901,2]
[406276274,1771683743433,151.0,0.00013901,2]
[406276275,1771683743480,500.0,0.00013901,2]
[406276276,1771683743650,500.0,0.00013901,2]
[406276277,1771683744152,500.0,0.00013901,2]
[406276278,1771683744199,151.0,0.00013901,2]
[406276279,1771683744346,500.0,0.00013901,2]
[406276280,1771683744841,151.0,0.00013901,2]
[406276281,1771683744957,500.0,0.00013901,2]
[406276282,1771683745600,500.0,0.00013901,2]
[406276283,1771683745759,151.0,0.00013901,2]
[406276284,1771683745862,500.0,0.0001,2]
[406276285,1771683746364,984.39049039,0.0001,2]
[406276286,1771683746399,151.0,0.00013901,2]
[406276287,1771683746920,500.0,0.0001,2]
[406276288,1771683747412,198.04950961,0.0001,2]
[406276289,1771683747435,301.95049039,0.0001,2]
[406276290,1771683747883,800.0,0.0001,2]
[406276291,1771683749608,800.0,0.0001,2]
[406276292,1771683750104,800.0,0.0001,2]
[406276293,1771683750740,800.0,0.0001,2]
[406276294,1771683751166,800.0,0.0001,2]
[406276295,1771683751691,800.0,0.0001,2]
[406276296,1771683752065,500.0,0.0001,2]
[406276297,1771683752193,800.0,0.0001,2]
[406276298,1771683752238,500.0,0.00013901,2]
[406276299,1771683752377,500.0,0.0001,2]
[406276300,1771683752648,500.0,0.0001,2]
[406276301,1771683752682,800.0,0.0001,2]
[406276302,1771683753152,500.0,0.0001,2]
[406276303,1771683753185,798.05950961,0.0001,2]
[406276304,1771683753208,1.94049039,0.0001,2]
[406276305,1771683753608,500.0,0.0001,2]
[406276306,1771683753662,800.0,0.0001,2]
[406276307,1771683754110,500.0,0.0001,2]
[406276308,1771683754188,800.0,0.0001,2]
[406276309,1771683754573,900.0,0.0001,2]
[406276310,1771683754856,800.0,0.0001,2]
[406276311,1771683755361,800.0,0.0001,2]
[406276312,1771683755665,202.62533237,0.00013901,2]
[406276313,1771683755846,800.0,0.0001,2]
[406276314,1771683756328,800.0,0.0001,2]
[406276315,1771683756978,500.0,0.0001,2]
[406276316,1771683757464,500.0,0.0001,2]
[406276317,1771683758465,500.0,0.0001,2]
[406276318,1771683758957,500.0,0.0001,2]
[406276319,1771683759486,500.0,0.0001,2]
[406276320,1771683759971,500.0,0.0001,2]
[406276321,1771683760459,95.44417724,0.0001,2]
[406276322,1771683760482,404.55582276,0.0001,2]
[406276323,1771683762089,1600.0,0.00013323,2]
[406276325,1771683952511,8080.11827689,9.95e-05,2]
[406276326,1771683952534,8702.87994649,9.95e-05,2]
[406276328,1771684039071,500.0,0.0001,2]
[406276329,1771684039429,500.0,0.0001,2]
[406276330,1771684039580,500.0,0.0001,2]
[406276331,1771684039945,500.0,0.0001,2]
[406276332,1771684040080,500.0,0.0001,2]
[406276333,1771684040437,500.0,0.0001,2]
[406276334,1771684040922,500.0,0.0001,2]
[406276335,1771684041229,500.0,0.0001,2]
[406276336,1771684041401,500.0,0.0001,2]
[406276337,1771684041679,500.0,0.0001,2]
[406276338,1771684041868,700.0,0.0001,2]
[406276339,1771684042182,500.0,0.0001,2]
[406276340,1771684042705,300.01,0.0001,2]
[406276341,1771684042730,199.99,0.0001,2]
[406276342,1771684043186,500.0,0.0001,2]
[406276343,1771684043676,500.0,0.0001,2]
[406276344,1771684044169,500.0,0.0001,2]
[406276345,1771684044641,500.0,0.0001,2]
[406276346,1771684044679,500.0,0.0001,2]
[406276347,1771684045120,-1031.18072374,0.000108,2]
[406276348,1771684045142,-179.22,0.000108,2]
[406276349,1771684045164,-39.59927626,0.00010855,2]
[406276350,1771684045194,500.0,0.0001,2]
[406276351,1771684045225,500.0,0.0001,2]
[406276352,1771684045632,999.71977948,0.0001,2]
[406276353,1771684045660,500.29022052,0.0001,2]
[406276354,1771684045683,99.70977948,0.0001,2]
[406276355,1771684052258,-742.81059001,0.00010855,2]
[406276356,1771684052447,500.0,0.0001,2]
[406276357,1771684052907,500.0,0.0001,2]
[406276358,1771684053186,500.0,0.0001,2]
[406276359,1771684053405,500.0,0.0001,2]
[406276360,1771684053491,500.0,0.0001,2]
[406276361,1771684053739,800.0,0.0001,2]
[406276362,1771684054022,500.0,0.0001,2]
[406276363,1771684054224,800.0,0.0001,2]
[406276364,1771684054259,500.0,0.0001,2]
[406276365,1771684054298,500.0,0.0001,2]
[406276366,1771684054497,500.0,0.0001,2]
[406276367,1771684054661,500.0,0.0001,2]
[406276368,1771684054719,500.0,0.0001,2]
[406276369,1771684054760,800.0,0.0001,2]
[406276370,1771684054894,500.0,0.0001,2]
[406276371,1771684054950,114.38881998,0.0001,2]
[406276372,1771684054973,385.61118002,0.0001,2]
[406276373,1771684055011,500.0,0.0001,2]
[406276374,1771684055202,500.0,0.0001,2]
[406276375,1771684055236,800.0,0.0001,2]
[406276376,1771684055403,500.0,0.0001,2]
[406276377,1771684055475,500.0,0.0001,2]
[406276378,1771684055504,500.0,0.0001,2]
[406276379,1771684055698,500.0,0.0001,2]
[406276380,1771684055729,800.0,0.0001,2]
[406276381,1771684055997,500.0,0.0001,2]
[406276382,1771684056032,500.0,0.0001,2]
[406276383,1771684056268,500.0,0.0001,2]
[406276384,1771684056300,800.0,0.0001,2]
[406276385,1771684056462,500.0,0.0001,2]
[406276386,1771684056491,500.0,0.0001,2]
[406276387,1771684056640,500.0,0.0001,2]
[406276388,1771684056768,800.0,0.0001,2]
[406276389,1771684056830,414.39881998,0.0001,2]
[406276390,1771684056854,85.60118002,0.0001,2]
[406276391,1771684056935,800.0,0.0001,2]
[406276392,1771684056965,500.0,0.0001,2]
[406276393,1771684057273,800.0,0.0001,2]
[406276394,1771684057484,800.0,0.0001,2]
[406276395,1771684057750,800.0,0.0001,2]
[406276396,1771684058250,800.0,0.0001,2]
[406276397,1771684058732,800.0,0.0001,2]
[406276398,1771684059230,800.0,0.0001,2]
[406276399,1771684059719,800.0,0.0001,2]
[406276400,1771684060209,1500.0,0.0001,2]
[406276402,1771684068288,-300.0,0.0001188,2]
[406276403,1771684083300,-300.0,0.00012399,2]
[406276404,1771684092444,-188.0,0.00012399,2]
[406276405,1771684099572,151.0,0.00012399,2]
[406276406,1771684104556,-6427.39346294,0.000124,2]
[406276407,1771684104591,-10000.01,0.000124,2]
[406276408,1771684104729,-4845.59653706,0.000124,2]
[406276410,1771684116518,5000.01,0.00012435,2]
[406276411,1771684116540,5000.01,0.00012435,2]
[406276412,1771684116564,2628.680615,0.00012435,2]
[406276413,1771684145925,179.0,0.00012488,2]
[406276414,1771684171669,5531.0,0.000124,3]
[406276415,1771684184276,-300.0,0.00012498,2]
[406276416,1771684184305,-5531.0,0.000125,5]
[406276417,1771684184332,-300.0,0.00012573,2]
[406276418,1771684184356,-441.007879,0.00012596,2]
[406276419,1771684184383,-300.0,0.00012599,2]
[406276420,1771684184408,-823.0,0.00012632,2]
[406276421,1771684184436,-5624.77,0.00012633,2]
[406276422,1771684184460,-300.0,0.00012699,2]
[406276423,1771684184484,-359.079197,0.0001297,2]
[406276424,1771684184508,-5625.60216596,0.00013,2]
[406276426,1771684221136,-170.0,0.00013067,2]
[406276427,1771684221156,-160.0,0.00013067,2]
[406276428,1771684221179,-250.0,0.00013072,2]
[406276429,1771684221199,-831.47,0.00013077,2]
[406276430,1771684221219,-150.0,0.00013077,2]
[406276431,1771684221238,-257.0,0.00013077,2]
[406276432,1771684221259,-330.38941593,0.00013131,2]
[406276433,1771684221278,-200.0,0.00013174,2]
[406276434,1771684221298,-448.0,0.00013287,2]
[406276435,1771684221318,-1160.0,0.00013304,2]
[406276436,1771684221342,-150.0,0.00013304,14]
[406276437,1771684221364,-200.0,0.00013309,2]
[406276438,1771684221384,-3240.0,0.00013425,2]
[406276439,1771684221408,-300.0,0.00013499,2]
[406276440,1771684221428,-300.0,0.00013499,2]
[406276441,1771684221448,-300.0,0.00013499,2]
[406276442,1771684221469,-1200.0,0.00013499,2]
[406276443,1771684221489,-300.0,0.00013499,2]
[406276444,1771684221512,-700.0,0.000135,4]
[406276445,1771684221533,-1000.0,0.000135,4]
[406276446,1771684221553,-1400.0,0.000136,4]
[406276447,1771684221573,-2000.0,0.000136,4]
[406276448,1771684221593,-5000.0,0.0001364,2]
[406276449,1771684221616,-300.0,0.0001364,2]
[406276450,1771684221638,-5208.72318041,0.0001369,2]
[406276451,1771684221658,-276.8,0.00013699,2]
[406276452,1771684221678,-2100.0,0.000137,5]
[406276453,1771684221698,-3000.0,0.000137,5]
[406276454,1771684221718,-150.0,0.00013747,2]
[406276455,1771684221738,-600.0,0.00013748,2]
[406276456,1771684221762,-600.0,0.00013748,2]
[406276457,1771684221783,-391.16094223,0.00013748,2]
[406276458,1771684221807,-195.0,0.00013748,2]
[406276459,1771684221831,-195.0,0.00013748,2]
[406276460,1771684221852,-195.0,0.00013748,2]
[406276461,1771684221872,-184.31164284,0.00013748,2]
[406276462,1771684221892,-500.0,0.00013748,2]
[406276463,1771684221912,-2800.0,0.000138,5]
[406276464,1771684221933,-4100.0,0.000138,5]
[406276465,1771684221952,-275.72191242,0.00013827,2]
[406276466,1771684221972,-4935.15134938,0.00013831,2]
[406276467,1771684221991,-589.37813688,0.00013838,2]
[406276468,1771684222011,-4809.0,0.0001389,2]
[406276469,1771684222030,-26829.17,0.0001389,2]
[406276470,1771684222053,-1545.8998,0.0001389,2]
[406276471,1771684222073,-3500.0,0.000139,5]
[406276472,1771684222093,-5100.0,0.000139,5]
[406276473,1771684222113,-500.0,0.00013927,2]
[406276474,1771684222133,-274.62246737,0.00013927,2]
[406276475,1771684222154,-500.0,0.00013927,2]
[406276476,1771684222174,-259.06592218,0.00013927,2]
[406276477,1771684222195,-500.0,0.00013927,2]
[406276478,1771684222215,-500.0,0.00013927,2]
[406276479,1771684222239,-1439.63009764,0.00013927,2]
[406276480,1771684222258,-500.0,0.00013927,2]
[406276481,1771684222281,-500.0,0.00013927,2]
[406276482,1771684222300,-381.96045246,0.00013927,2]
[406276483,1771684222320,-510.43282028,0.00013927,2]
[406276484,1771684222347,-1439.63009764,0.00013927,2]
[406276485,1771684222368,-500.0,0.00013927,2]
[406276486,1771684222388,-500.0,0.00013927,2]
[406276487,1771684222415,-1439.63009764,0.00013927,2]
[406276488,1771684222680,-574.1920639,0.00013927,2]
[406276489,1771684222706,-1439.63009764,0.00013927,2]
[406276490,1771684222725,-570.50641411,0.00013927,2]
[406276491,1771684222750,-1439.63009764,0.00013927,2]
[406276492,1771684222773,-1439.63009764,0.00013927,2]
[406276493,1771684222797,-1439.63009764,0.00013927,2]
[406276494,1771684222821,-1439.63009764,0.00013927,2]
[406276495,1771684222847,-1439.63009764,0.00013927,2]
[406276496,1771684222870,-1439.63009764,0.00013927,2]
[406276497,1771684222894,-1439.63009764,0.00013927,2]
[406276498,1771684222934,-1439.63009764,0.00013927,2]
[406276499,1771684222962,-1439.63009764,0.00013927,2]
[406276500,1771684222984,-500.0,0.00013927,2]
[406276501,1771684223008,-1439.63009764,0.00013927,2]
[406276502,1771684223034,-1439.63009764,0.00013927,2]
[406276503,1771684223063,-1439.63009764,0.00013927,2]
[406276504,1771684223096,-1439.63009764,0.00013927,2]
[406276505,1771684223122,-1439.63009764,0.00013927,2]
[406276506,1771684223146,-1439.63009764,0.00013927,2]
[406276507,1771684223171,-1439.63009764,0.00013927,2]
[406276508,1771684223195,-1439.63009764,0.00013927,2]
[406276509,1771684223219,-1439.63009764,0.00013927,2]
[406276510,1771684223243,-1439.63009764,0.00013927,2]
[406276511,1771684223267,-1439.63009764,0.00013927,2]
[406276512,1771684223291,-1439.63009764,0.00013927,2]
[406276513,1771684223315,-1439.63009764,0.00013927,2]
[406276514,1771684223343,-1439.63009764,0.00013927,2]
[406276515,1771684223369,-1439.63009764,0.00013927,2]
[406276516,1771684223394,-1439.63009764,0.00013927,2]
[406276517,1771684223419,-1439.63009764,0.00013927,2]
[406276518,1771684223442,-1439.63009764,0.00013927,2]
[406276519,1771684223466,-1439.63009764,0.00013927,2]
[406276520,1771684223490,-1439.63009764,0.00013927,2]
[406276521,1771684223514,-1439.63009764,0.00013927,2]
[406276522,1771684223538,-1439.63009764,0.00013927,2]
[406276523,1771684223564,-1439.63009764,0.00013927,2]
[406276524,1771684223589,-1439.63009764,0.00013927,2]
[406276525,1771684223613,-1439.63009764,0.00013927,2]
[406276526,1771684223636,-1439.63009764,0.00013927,2]
[406276527,1771684223660,-1439.63009764,0.00013927,2]
[406276528,1771684223684,-1439.63009764,0.00013927,2]
[406276529,1771684223708,-1439.63009764,0.00013927,2]
[406276530,1771684223732,-1439.63009764,0.00013927,2]
[406276531,1771684223755,-1439.63009764,0.00013927,2]
[406276532,1771684223778,-1439.63009764,0.00013927,2]
[406276533,1771684223801,-1439.63009764,0.00013927,2]
[406276534,1771684223829,-1439.63009764,0.00013927,2]
[406276535,1771684223853,-1439.63009764,0.00013927,2]
[406276536,1771684223877,-1439.63009764,0.00013927,2]
[406276537,1771684223903,-1439.63009764,0.00013927,2]
[406276538,1771684223929,-1439.63009764,0.00013927,2]
[406276539,1771684223956,-1439.63009764,0.00013927,2]
[406276540,1771684223983,-1439.63009764,0.00013927,2]
[406276541,1771684224010,-1439.63009763,0.00013927,2]
[406276542,1771684224036,-1439.63009763,0.00013927,2]
[406276543,1771684224063,-1439.63009763,0.00013927,2]
[406276544,1771684224090,-1439.63009763,0.00013927,2]
[406276545,1771684224117,-1439.63009763,0.00013927,2]
[406276546,1771684224144,-1439.63009763,0.00013927,2]
[406276547,1771684224173,-1439.63009763,0.00013927,2]
[406276548,1771684224201,-1439.63009763,0.00013927,2]
[406276549,1771684224227,-1439.63009763,0.00013927,2]
[406276550,1771684224252,-1439.63009763,0.00013927,2]
[406276551,1771684224278,-1439.63009763,0.00013927,2]
[406276552,1771684224302,-1439.63009763,0.00013927,2]
[406276553,1771684224326,-1439.63009763,0.00013927,2]
[406276554,1771684224355,-1439.63009763,0.00013927,2]
[406276555,1771684224385,-1439.63009763,0.00013927,2]
[406276556,1771684224411,-1439.63009763,0.00013927,2]
[406276557,1771684224437,-1439.63009763,0.00013927,2]
[406276558,1771684224465,-1439.63009763,0.00013927,2]
[406276559,1771684224490,-1439.63009763,0.00013927,2]
[406276560,1771684224514,-1439.63009763,0.00013927,2]
[406276561,1771684224538,-1439.63009763,0.00013927,2]
[406276562,1771684224563,-1439.63009763,0.00013927,2]
[406276563,1771684224591,-1439.63009763,0.00013927,2]
[406276564,1771684224615,-1439.63009763,0.00013927,2]
[406276565,1771684224643,-1439.63009763,0.00013927,2]
[406276566,1771684224668,-1439.63009763,0.00013927,2]
[406276567,1771684224692,-1439.63009764,0.00013927,2]
[406276568,1771684224716,-1439.63009764,0.00013927,2]
[406276569,1771684224741,-1439.63009764,0.00013927,2]
[406276570,1771684224766,-1439.63009764,0.00013927,2]
[406276571,1771684224790,-1439.63009764,0.00013927,2]
[406276572,1771684224816,-1439.63009764,0.00013927,2]
[406276573,1771684224841,-1439.63009764,0.00013927,2]
[406276574,1771684224866,-1439.63009764,0.00013927,2]
[406276575,1771684224891,-1439.63009763,0.00013927,2]
[406276576,1771684224916,-230814.59488756,0.00013928,2]
[406276581,1771684232133,-1786.89425388,0.00013838,2]
[406276583,1771684232143,-300.05176932,0.00013918,2]
[406276585,1771684232152,-300.05176932,0.00013918,2]
[406276586,1771684232161,-151.0,0.00013925,2]
[406276587,1771684232170,-500.0,0.00013927,2]
[406276588,1771684232179,-85256.15464923,0.00013928,2]
[406276589,1771684232191,-16651.84007856,0.00013928,2]
[406276590,1771684232205,-1348.91144741,0.00013928,2]
[406276591,1771684232260,-18495.50802522,0.00013928,2]
[406276592,1771684232321,-353.5,0.00013928,2]
[406276593,1771684232332,-1395386.12998237,0.00013928,2]
[406276594,1771684232348,-157623.97328355,0.00013928,2]
[406276595,1771684232359,-146542.01494909,0.00013928,2]
[406276596,1771684232370,-171258.79016407,0.00013928,2]
[406276616,1771684238302,-997.91895596,0.00013928,2]
[406276617,1771684238336,-950.98,0.00013928,2]
[406276618,1771684238489,-4407.5680368,0.00013928,2]
[406276619,1771684238519,-815.93654681,0.00013928,2]
[406276621,1771684238534,-143786.126591,0.00013928,2]
[406276624,1771684238547,-1125310.05240237,0.00013928,2]
[406276626,1771684238556,-2500.0,0.00013938,2]
[406276628,1771684238565,-169.88351399,0.00013938,2]
[406276630,1771684238575,-696.96510435,0.00013938,2]
[406276632,1771684238584,-509.22,0.00013971,2]
[406276633,1771684238593,-5000.0,0.00014,2]
[406276635,1771684238602,-600.0,0.00014,2]
[406276637,1771684238612,-500.0,0.00014,2]
[406276639,1771684238621,-600.0,0.00014,2]
[406276641,1771684238630,-500.0,0.00014,2]
[406276643,1771684238641,-600.0,0.00014,2]
[406276645,1771684238650,-500.0,0.00014,2]
[406276647,1771684238660,-500.0,0.00014,2]
[406276649,1771684238669,-600.0,0.00014,2]
[406276651,1771684238678,-600.0,0.00014,2]
[406276653,1771684238687,-600.0,0.00014,2]
[406276674,1771684238874,-600.0,0.00014,2]
[406276675,1771684238885,-600.0,0.00014,2]
[406276676,1771684238895,-600.0,0.00014,2]
[406276677,1771684238904,-600.0,0.00014,2]
[406276678,1771684238914,-600.0,0.00014,2]
[406276679,1771684238923,-600.0,0.00014,2]
[406276680,1771684238933,-600.0,0.00014,2]
[406276681,1771684238942,-500.0,0.00014,2]
[406276682,1771684238952,-187.50631963,0.00014,2]
[406276683,1771684238962,-500.0,0.00014,2]
[406276684,1771684238972,-500.0,0.00014,2]
[406276686,1771684238981,-500.0,0.00014,2]
[406276687,1771684238991,-500.0,0.00014,2]
[406276689,1771684239001,-500.0,0.00014,2]
[406276691,1771684239010,-500.0,0.00014,2]
[406276693,1771684239019,-500.0,0.00014,2]
[406276695,1771684239029,-500.0,0.00014,2]
[406276697,1771684239039,-500.0,0.00014,2]
[406276699,1771684239048,-500.0,0.00014,2]
[406276701,1771684239058,-500.0,0.00014,2]
[406276703,1771684239067,-500.0,0.00014,2]
[406276705,1771684239076,-500.0,0.00014,2]
[406276707,1771684239085,-500.0,0.00014,2]
[406276709,1771684239095,-500.0,0.00014,2]
[406276711,1771684239104,-500.0,0.00014,2]
[406276713,1771684239113,-800.0,0.00014,2]
[406276715,1771684239122,-810.0,0.00014,2]
[406276717,1771684239132,-800.0,0.00014,2]
[406276719,1771684239142,-800.0,0.00014,2]
[406276721,1771684239151,-800.0,0.00014,2]
[406276723,1771684239160,-800.0,0.00014,2]
[406276725,1771684239169,-746.81779802,0.00014,2]
[406276727,1771684239179,-800.0,0.00014,2]
[406276729,1771684239188,-500.0,0.00014,2]
[406276731,1771684239197,-800.0,0.00014,2]
[406276733,1771684239206,-500.0,0.00014,2]
[406276735,1771684239215,-500.0,0.00014,2]
[406276737,1771684239224,-173.48678662,0.00014,2]
[406276739,1771684239233,-500.0,0.00014,2]
[406276741,1771684239243,-800.0,0.00014,2]
[406276743,1771684239253,-500.0,0.00014,2]
[406276745,1771684239263,-500.0,0.00014,2]
[406276747,1771684239272,-800.0,0.00014,2]
[406276749,1771684239282,-500.0,0.00014,2]
[406276751,1771684239291,-800.0,0.00014,2]
[406276753,1771684239300,-800.0,0.00014,2]
[406276755,1771684239311,-202.8154755,0.00014,2]
[406276757,1771684239320,-800.0,0.00014,2]
[406276759,1771684239330,-800.0,0.00014,2]
[406276761,1771684239342,-168.77295823,0.00014,2]
[406276763,1771684239353,-800.0,0.00014,2]
[406276765,1771684239363,-500.0,0.00014,2]
[406276767,1771684239372,-467.59818242,0.00014,2]
[406276769,1771684239381,-500.0,0.00014,2]
[406276771,1771684239391,-500.0,0.00014,2]
[406276773,1771684239402,-500.0,0.00014,2]
[406276775,1771684239411,-500.0,0.00014,2]
[406276777,1771684239420,-500.0,0.00014,2]
[406276779,1771684239430,-500.0,0.00014,2]
[406276781,1771684239439,-500.0,0.00014,2]
[406276783,1771684239448,-500.0,0.00014,2]
[406276785,1771684239458,-500.0,0.00014,2]
[406276787,1771684239467,-500.0,0.00014,2]
[406276789,1771684239476,-500.0,0.00014,2]
[406276791,1771684239485,-500.0,0.00014,2]
[406276793,1771684239494,-500.0,0.00014,2]
[406276795,1771684239503,-500.0,0.00014,2]
[406276797,1771684239513,-500.0,0.00014,2]
[406276799,1771684239522,-500.0,0.00014,2]
[406276801,1771684239531,-500.0,0.00014,2]
[406276803,1771684239540,-500.0,0.00014,2]
[406276805,1771684239550,-500.0,0.00014,2]
[406276807,1771684239560,-500.0,0.00014,2]
[406276809,1771684239569,-501.36407877,0.00014,2]
[406276811,1771684239579,-500.0,0.00014,2]
[406276813,1771684239588,-500.0,0.00014,2]
[406276815,1771684239598,-500.0,0.00014,2]
[406276817,1771684239607,-500.0,0.00014,2]
[406276819,1771684239616,-500.0,0.00014,2]
[406276821,1771684239625,-500.0,0.00014,2]
[406276823,1771684239635,-500.0,0.00014,2]
[406276825,1771684239645,-500.0,0.00014,2]
[406276828,1771684239654,-500.0,0.00014,2]
[406276830,1771684239663,-500.0,0.00014,2]
[406276832,1771684239672,-500.0,0.00014,2]
[406276834,1771684239681,-500.0,0.00014,2]
[406276836,1771684239691,-500.0,0.00014,2]
[406276838,1771684239700,-500.0,0.00014,2]
[406276840,1771684239708,-500.0,0.00014,2]
[406276842,1771684239717,-500.0,0.00014,2]
[406276844,1771684239726,-500.0,0.00014,2]
[406276846,1771684239735,-322.49747918,0.00014,2]
[406276848,1771684239744,-389.72502397,0.00014,2]
[406276850,1771684239753,-500.0,0.00014,2]
[406276852,1771684239762,-500.0,0.00014,2]
[406276854,1771684239771,-285.78386922,0.00014,2]
[406276855,1771684239780,-500.0,0.00014,2]
[406276857,1771684239789,-500.0,0.00014,2]
[406276858,1771684239798,-500.0,0.00014,2]
[406276859,1771684239806,-500.0,0.00014,2]
[406276860,1771684239815,-800.0,0.00014,2]
[406276861,1771684239824,-800.0,0.00014,2]
[406276862,1771684239833,-800.0,0.00014,2]
[406276863,1771684239842,-392.76826941,0.00014,2]
[406276864,1771684239851,-800.0,0.00014,2]
[406276865,1771684239859,-514.27853085,0.00014,2]
[406276866,1771684239868,-800.0,0.00014,2]